fUST/lending_fUST_20240901
["ID","MTS","AMOUNT","RATE_DAILY","PERIOD"]
[336837466,1725202243686,-2010.94,0.00024657,2]
[336837467,1725202243695,-500.0,0.00024657,2]
[336837468,1725202243705,-500.0,0.00024657,2]
[336837469,1725202243715,-1592.9,0.00024657,2]
[336837470,1725202243725,-2328.46,0.00024657,2]
[336837471,1725202243735,-500.0,0.00024657,2]
[336837472,1725202243744,-2418.08,0.00024657,2]
[336837473,1725202243754,-2104.52,0.00024657,2]
[336837474,1725202243763,-500.0,0.00024657,2]
[336837475,1725202243772,-500.0,0.00024657,2]
[336837476,1725202243782,-500.0,0.00024657,2]
[336837477,1725202243791,-2060.42,0.00024657,2]
[336837478,1725202243801,-500.0,0.00024657,2]
[336837479,1725202243810,-500.0,0.00024657,2]
[336837480,1725202243819,-403.36437749,0.00024657,2]
[336837481,1725202243828,-500.0,0.00024657,2]
[336837482,1725202243837,-500.0,0.00024657,2]
[336837483,1725202243847,-758.41,0.00024657,2]
[336837484,1725202243856,-192.6124918,0.00024657,2]
[336837485,1725202243865,-502.05925854,0.00024657,2]
[336837486,1725202243874,-2577.56,0.00024657,2]
[336837487,1725202243884,-3355.45,0.00024657,2]
[336837488,1725202243893,-500.0,0.00024657,2]
[336837489,1725202243901,-500.0,0.00024657,2]
[336837490,1725202243910,-1154.15,0.00024657,2]
[336837491,1725202243920,-927.21,0.00024657,2]
[336837492,1725202243930,-500.0,0.00024657,2]
[336837493,1725202243939,-500.0,0.00024657,2]
[336837494,1725202243948,-344.95063862,0.00024657,2]
[336837495,1725202243957,-857.87,0.00024657,2]
[336837496,1725202243966,-809.76,0.00024657,2]
[336837497,1725202243975,-500.0,0.00024657,2]
[336837498,1725202243984,-501.51833889,0.00024657,2]
[336837499,1725202243994,-500.0,0.00024657,2]
[336837500,1725202244003,-1683.36,0.00024657,2]
[336837501,1725202244012,-500.0,0.00024657,2]
[336837502,1725202244022,-500.0,0.00024657,2]
[336837503,1725202244031,-500.0,0.00024657,2]
[336837504,1725202244041,-500.0,0.00024657,2]
[336837505,1725202244050,-500.0,0.00024657,2]
[336837506,1725202244060,-500.0,0.00024657,2]
[336837507,1725202244069,-500.0,0.00024657,2]
[336837508,1725202244078,-10269.16,0.00024657,2]
[336837509,1725202244088,-500.0,0.00024657,2]
[336837510,1725202244096,-500.0,0.00024657,2]
[336837511,1725202244106,-500.0,0.00024657,2]
[336837512,1725202244115,-500.0,0.00024657,2]
[336837513,1725202244124,-1783.23,0.00024657,2]
[336837514,1725202244133,-500.0,0.00024657,2]
[336837515,1725202244141,-1811.48,0.00024657,2]
[336837516,1725202244150,-1991.72,0.00024657,2]
[336837517,1725202244160,-500.0,0.00024657,2]
[336837518,1725202244169,-500.0,0.00024657,2]
[336837519,1725202244179,-500.0,0.00024657,2]
[336837520,1725202244188,-414.72557276,0.00024657,2]
[336837521,1725202244404,-85.27442724,0.00024657,2]
[336837522,1725202244414,-1209.75,0.00024657,2]
[336837523,1725202244423,-500.0,0.00024657,2]
[336837524,1725202244433,-893.3,0.00024657,2]
[336837525,1725202244443,-2194.3,0.00024657,2]
[336837526,1725202244452,-6415.73,0.00024657,2]
[336837527,1725202244462,-500.0,0.00024657,2]
[336837528,1725202244471,-500.0,0.00024657,2]
[336837529,1725202244481,-500.0,0.00024657,2]
[336837530,1725202244490,-416.09270288,0.00024657,2]
[336837531,1725202244499,-501.97666087,0.00024657,2]
[336837532,1725202244508,-578.02,0.00024657,2]
[336837533,1725202244517,-500.0,0.00024657,2]
[336837534,1725202244527,-1089.28,0.00024657,2]
[336837535,1725202244536,-3922.48,0.00024657,2]
[336837536,1725202244545,-2132.6,0.00024657,2]
[336837537,1725202244554,-500.0,0.00024657,2]
[336837538,1725202244563,-1477.0,0.00024657,2]
[336837539,1725202244572,-500.0,0.00024657,2]
[336837540,1725202244582,-2264.07,0.00024657,2]
[336837541,1725202244591,-500.0,0.00024657,2]
[336837542,1725202244600,-1287.53,0.00024657,2]
[336837543,1725202244609,-500.0,0.00024657,2]
[336837544,1725202244619,-500.0,0.00024657,2]
[336837545,1725202244628,-2410.11,0.00024657,2]
[336837546,1725202244638,-500.0,0.00024657,2]
[336837547,1725202244651,-500.0,0.00024657,2]
[336837548,1725202244660,-2440.85,0.00024657,2]
[336837549,1725202244671,-1883.11,0.00024657,2]
[336837550,1725202244681,-500.0,0.00024657,2]
[336837551,1725202244691,-2408.79,0.00024657,2]
[336837552,1725202244700,-500.0,0.00024657,2]
[336837553,1725202244710,-500.0,0.00024657,2]
[336837554,1725202244719,-200.0,0.00024657,2]
[336837555,1725202244731,-1885.63,0.00024657,2]
[336837556,1725202244741,-850.65,0.00024657,2]
[336837557,1725202244750,-250.45872117,0.00024657,2]
[336837558,1725202244759,-678.65,0.00024657,2]
[336837559,1725202244769,-500.0,0.00024657,2]
[336837560,1725202244779,-500.0,0.00024657,2]
[336837561,1725202244789,-500.0,0.00024657,2]
[336837562,1725202244799,-500.0,0.00024657,2]
[336837563,1725202244808,-4032.74935448,0.00024756,3]
[336837564,1725202244817,-150.0,0.00024806,2]
[336837565,1725202244827,-2859.28897067,0.00024861,2]
[336837566,1725202244837,-4032.74935448,0.0002489,3]
[336837567,1725202244846,-500.0,0.00024899,2]
[336837568,1725202244856,-44884.77903622,0.000249,2]
[336837569,1725202244865,-150.112233,0.000249,5]
[336837570,1725202244875,-150.112237,0.000249,2]
[336837571,1725202244885,-24196.4961269,0.00024921,3]
[336837572,1725202244894,-6997.87844729,0.00024931,11]
[336837573,1725202244903,-500.0,0.00024931,2]
[336837574,1725202244913,-512.48922995,0.00024931,2]
[336837575,1725202244924,-501.28,0.00024931,2]
[336837576,1725202244935,-500.0,0.00024931,2]
[336837577,1725202244945,-500.0,0.00024931,2]
[336837578,1725202244954,-500.0,0.00024931,2]
[336837579,1725202244963,-545.76850301,0.00024931,2]
[336837580,1725202244972,-500.0,0.00024931,2]
[336837581,1725202244982,-500.0,0.00024931,2]
[336837582,1725202244991,-500.0,0.00024931,2]
[336837583,1725202245004,-315.93576019,0.00024931,2]
[336837584,1725202245016,-500.0,0.00024931,2]
[336837585,1725202245026,-500.0,0.00024931,2]
[336837586,1725202245036,-500.0,0.00024931,2]
[336837587,1725202245046,-500.0,0.00024931,2]
[336837588,1725202245056,-500.0,0.00024931,2]
[336837589,1725202245066,-631.07,0.00024931,2]
[336837590,1725202245075,-1043.61,0.00024931,2]
[336837591,1725202245086,-500.0,0.00024931,2]
[336837592,1725202245097,-500.0,0.00024931,2]
[336837593,1725202245106,-500.0,0.00024931,2]
[336837594,1725202245117,-500.0,0.00024931,2]
[336837595,1725202245130,-500.0,0.00024931,2]
[336837596,1725202245140,-500.0,0.00024931,2]
[336837597,1725202245151,-500.0,0.00024931,2]
[336837598,1725202245162,-800.07,0.00024931,2]
[336837599,1725202245173,-500.0,0.00024931,2]
[336837600,1725202245183,-500.0,0.00024931,2]
[336837601,1725202245193,-500.0,0.00024931,2]
[336837602,1725202245203,-313.38460656,0.00024931,2]
[336837603,1725202245213,-500.0,0.00024931,2]
[336837604,1725202245223,-500.0,0.00024931,2]
[336837605,1725202245233,-500.0,0.00024931,2]
[336837606,1725202245242,-500.0,0.00024931,2]
[336837607,1725202245251,-694.49,0.00024931,2]
[336837608,1725202245261,-500.0,0.00024931,2]
[336837609,1725202245270,-644.82726291,0.00024931,2]
[336837610,1725202245279,-500.0,0.00024931,2]
[336837611,1725202245289,-770.37,0.00024931,2]
[336837612,1725202245298,-500.0,0.00024931,2]
[336837613,1725202245308,-500.0,0.00024931,2]
[336837614,1725202245318,-628.98,0.00024931,2]
[336837615,1725202245328,-500.0,0.00024931,2]
[336837616,1725202245338,-500.0,0.00024931,2]
[336837617,1725202245347,-500.0,0.00024931,2]
[336837618,1725202245356,-500.0,0.00024931,2]
[336837619,1725202245365,-762.95,0.00024931,2]
[336837620,1725202245375,-500.0,0.00024931,2]
[336837621,1725202245385,-500.0,0.00024931,2]
[336837622,1725202245394,-500.0,0.00024931,2]
[336837623,1725202245404,-717.57,0.00024931,2]
[336837624,1725202245414,-1390.02,0.00024931,2]
[336837625,1725202245424,-596.57,0.00024931,2]
[336837628,1725202245433,-500.0,0.00024931,2]
[336837629,1725202245443,-391.05981609,0.00024931,2]
[336837630,1725202245452,-500.0,0.00024931,2]
[336837631,1725202245462,-261.86648806,0.00024931,2]
[336837632,1725202245471,-500.0,0.00024931,2]
[336837633,1725202245481,-500.0,0.00024931,2]
[336837634,1725202245490,-1841.95,0.00024931,2]
[336837635,1725202245500,-1144.54,0.00024931,2]
[336837637,1725202245509,-500.0,0.00024931,2]
[336837639,1725202245519,-500.0,0.00024931,2]
[336837641,1725202245528,-500.0,0.00024931,2]
[336837642,1725202245537,-867.33,0.00024931,2]
[336837643,1725202245547,-692.25,0.00024931,2]
[336837644,1725202245556,-227.78746043,0.00024931,2]
[336837645,1725202245567,-500.0,0.00024931,2]
[336837646,1725202245576,-500.0,0.00024931,2]
[336837647,1725202245585,-500.0,0.00024931,2]
[336837648,1725202245596,-500.0,0.00024931,2]
[336837649,1725202245606,-500.0,0.00024931,2]
[336837650,1725202245615,-500.0,0.00024931,2]
[336837651,1725202245624,-500.0,0.00024931,2]
[336837652,1725202245634,-500.0,0.00024931,2]
[336837653,1725202245647,-500.0,0.00024931,2]
[336837654,1725202245656,-554.6,0.00024931,2]
[336837655,1725202245666,-500.0,0.00024931,2]
[336837656,1725202245675,-500.0,0.00024931,2]
[336837657,1725202245686,-500.0,0.00024931,2]
[336837658,1725202245695,-500.0,0.00024931,2]
[336837659,1725202245704,-500.0,0.00024931,2]
[336837660,1725202245715,-500.0,0.00024931,2]
[336837661,1725202245727,-500.0,0.00024931,2]
[336837662,1725202245738,-5859.02,0.00024931,2]
[336837663,1725202245748,-500.0,0.00024931,2]
[336837664,1725202245759,-500.0,0.00024931,2]
[336837665,1725202245768,-501.813284,0.00024931,2]
[336837666,1725202245778,-500.0,0.00024931,2]
[336837667,1725202245788,-504.18658257,0.00024931,2]
[336837668,1725202245798,-500.0,0.00024931,2]
[336837669,1725202245808,-500.0,0.00024931,2]
[336837670,1725202245819,-500.0,0.00024931,2]
[336837671,1725202245828,-500.0,0.00024931,2]
[336837683,1725202245972,-1460.22,0.00024931,2]
[336837684,1725202245983,-500.0,0.00024931,2]
[336837685,1725202245993,-500.0,0.00024931,2]
[336837686,1725202246003,-500.0,0.00024931,2]
[336837687,1725202246012,-500.0,0.00024931,2]
[336837688,1725202246022,-602.69,0.00024931,2]
[336837689,1725202246032,-500.0,0.00024931,2]
[336837690,1725202246042,-500.0,0.00024931,2]
[336837691,1725202246051,-500.0,0.00024931,2]
[336837692,1725202246061,-500.0,0.00024931,2]
[336837693,1725202246070,-829.22,0.00024931,2]
[336837694,1725202246080,-617.7,0.00024931,2]
[336837695,1725202246092,-500.0,0.00024931,2]
[336837696,1725202246102,-1008.96,0.00024931,2]
[336837697,1725202246113,-500.0,0.00024931,2]
[336837698,1725202246124,-555.35547919,0.00024931,2]
[336837699,1725202246133,-506.51235212,0.00024931,2]
[336837700,1725202246143,-1051.01,0.00024931,2]
[336837701,1725202246153,-500.0,0.00024931,2]
[336837702,1725202246162,-500.0,0.00024931,2]
[336837703,1725202246172,-500.0,0.00024931,2]
[336837704,1725202246181,-500.0,0.00024931,2]
[336837705,1725202246190,-185.95936535,0.00024931,2]
[336837706,1725202246199,-500.0,0.00024931,2]
[336837707,1725202246209,-500.0,0.00024931,2]
[336837708,1725202246218,-500.0,0.00024931,2]
[336837709,1725202246228,-500.0,0.00024931,2]
[336837710,1725202246237,-510.3445711,0.00024931,2]
[336837711,1725202246247,-649.98,0.00024931,2]
[336837712,1725202246256,-500.0,0.00024931,2]
[336837713,1725202246265,-500.0,0.00024931,2]
[336837714,1725202246274,-500.0,0.00024931,2]
[336837715,1725202246283,-503.92317938,0.00024931,2]
[336837716,1725202246293,-560.37,0.00024931,2]
[336837717,1725202246302,-648.04,0.00024931,2]
[336837718,1725202246311,-500.0,0.00024931,2]
[336837719,1725202246321,-500.0,0.00024931,2]
[336837720,1725202246330,-500.0,0.00024931,2]
[336837721,1725202246339,-1102.18,0.00024931,2]
[336837722,1725202246348,-500.0,0.00024931,2]
[336837723,1725202246357,-500.0,0.00024931,2]
[336837724,1725202246366,-500.0,0.00024931,2]
[336837725,1725202246375,-505.01130212,0.00024931,2]
[336837726,1725202246385,-482.71310644,0.00024931,2]
[336837727,1725202246394,-693.38,0.00024931,2]
[336837728,1725202246403,-500.0,0.00024931,2]
[336837729,1725202246412,-500.0,0.00024931,2]
[336837730,1725202246422,-500.0,0.00024931,2]
[336837731,1725202246431,-2382.21,0.00024931,2]
[336837732,1725202246441,-500.0,0.00024931,2]
[336837733,1725202246450,-500.0,0.00024931,2]
[336837734,1725202246459,-621.86,0.00024931,2]
[336837735,1725202246468,-500.0,0.00024931,2]
[336837736,1725202246477,-504.7286352,0.00024931,2]
[336837737,1725202246486,-500.0,0.00024931,2]
[336837738,1725202246495,-500.0,0.00024931,2]
[336837739,1725202246504,-500.0,0.00024931,2]
[336837740,1725202246513,-500.0,0.00024931,2]
[336837741,1725202246522,-1907.89,0.00024931,2]
[336837742,1725202246532,-1240.34,0.00024931,2]
[336837743,1725202246541,-500.0,0.00024931,2]
[336837744,1725202246550,-500.0,0.00024931,2]
[336837745,1725202246559,-500.0,0.00024931,2]
[336837746,1725202246568,-500.0,0.00024931,2]
[336837747,1725202246578,-500.0,0.00024931,2]
[336837748,1725202246587,-500.0,0.00024931,2]
[336837749,1725202246597,-500.0,0.00024931,2]
[336837750,1725202246606,-500.0,0.00024931,2]
[336837751,1725202246616,-500.0,0.00024931,2]
[336837752,1725202246625,-500.0,0.00024931,2]
[336837753,1725202246635,-500.0,0.00024931,2]
[336837754,1725202246647,-500.0,0.00024931,2]
[336837755,1725202246657,-564.65,0.00024931,2]
[336837756,1725202246666,-500.0,0.00024931,2]
[336837757,1725202246676,-500.0,0.00024931,2]
[336837758,1725202246686,-500.0,0.00024931,2]
[336837759,1725202246695,-773.19,0.00024931,2]
[336837760,1725202246704,-500.0,0.00024931,2]
[336837761,1725202246713,-500.0,0.00024931,2]
[336837762,1725202246724,-560.91,0.00024931,2]
[336837763,1725202246734,-500.0,0.00024931,2]
[336837764,1725202246743,-500.0,0.00024931,2]
[336837765,1725202246753,-500.0,0.00024931,2]
[336837766,1725202246762,-1211.65,0.00024931,2]
[336837767,1725202246771,-571.17,0.00024931,2]
[336837768,1725202246780,-500.0,0.00024931,2]
[336837769,1725202246789,-1784.08,0.00024931,2]
[336837770,1725202246798,-500.0,0.00024931,2]
[336837771,1725202246807,-522.85,0.00024931,2]
[336837772,1725202246817,-812.85,0.00024931,2]
[336837773,1725202246826,-500.0,0.00024931,2]
[336837774,1725202246835,-500.0,0.00024931,2]
[336837775,1725202246844,-614.97,0.00024931,2]
[336837776,1725202246854,-500.0,0.00024931,2]
[336837777,1725202246863,-858.39,0.00024931,2]
[336837778,1725202246872,-154.946484,0.00024931,2]
[336837779,1725202246882,-1147.46,0.00024931,2]
[336837780,1725202246891,-1145.95,0.00024931,2]
[336837781,1725202246902,-500.0,0.00024931,2]
[336837782,1725202246912,-679.86,0.00024931,2]
[336837783,1725202246926,-500.0,0.00024931,2]
[336837784,1725202246936,-500.0,0.00024931,2]
[336837785,1725202246947,-632.53,0.00024931,2]
[336837786,1725202246956,-1971.15,0.00024931,2]
[336837787,1725202246965,-500.0,0.00024931,2]
[336837788,1725202246975,-500.0,0.00024931,2]
[336837789,1725202246984,-500.0,0.00024931,2]
[336837790,1725202246993,-500.0,0.00024931,2]
[336837791,1725202247003,-1472.89,0.00024931,2]
[336837792,1725202247015,-500.0,0.00024931,2]
[336837793,1725202247025,-500.0,0.00024931,2]
[336837794,1725202247035,-500.0,0.00024931,2]
[336837795,1725202247045,-500.0,0.00024931,2]
[336837796,1725202247055,-1897.29,0.00024931,2]
[336837797,1725202247065,-907.97,0.00024931,2]
[336837799,1725202247074,-500.0,0.00024931,2]
[336837801,1725202247083,-2935.95,0.00024931,2]
[336837803,1725202247095,-977.97,0.00024931,2]
[336837804,1725202247107,-2650.04,0.00024931,2]
[336837805,1725202247118,-500.0,0.00024931,2]
[336837806,1725202247128,-659.17,0.00024931,2]
[336837807,1725202247139,-500.0,0.00024931,2]
[336837808,1725202247149,-500.0,0.00024931,2]
[336837809,1725202247159,-500.0,0.00024931,2]
[336837811,1725202247171,-521.55,0.00024931,2]
[336837812,1725202247181,-2810.36,0.00024931,2]
[336837813,1725202247191,-151.0,0.00024931,7]
[336837814,1725202247200,-500.0,0.00024931,2]
[336837815,1725202247209,-231.70243,0.00024931,7]
[336837817,1725202247220,-500.0,0.00024931,2]
[336837818,1725202247230,-631.65,0.00024931,2]
[336837820,1725202247241,-2056.73,0.00024931,2]
[336837822,1725202247251,-554.87,0.00024931,2]
[336837823,1725202247260,-1601.39987694,0.00024931,2]
[336837824,1725202247918,-250.0,0.00022996,2]
[336837825,1725202247927,-250.0,0.00023056,2]
[336837826,1725202247936,-250.0,0.00023116,2]
[336837827,1725202247946,-500.0,0.00024657,2]
[336837828,1725202247956,-500.0,0.00024657,2]
[336837829,1725202247966,-813.74012306,0.00024931,2]
[336837830,1725202247976,-2969.83,0.00024931,2]
[336837831,1725202247987,-500.0,0.00024931,2]
[336837832,1725202247997,-1117.44,0.00024931,2]
[336837833,1725202248006,-500.0,0.00024931,2]
[336837834,1725202248015,-500.0,0.00024931,2]
[336837835,1725202248025,-500.0,0.00024931,2]
[336837836,1725202248035,-159.94839036,0.00024931,2]
[336837837,1725202600292,158.24995,0.00014247,2]
[336837840,1725203139718,167.909994,0.00014247,2]
[336837846,1725203248780,176.94457749,0.00025,120]
[336837890,1725203438528,-300.0,0.00021842,2]
[336837891,1725203438538,-300.0,0.00021842,2]
[336837892,1725203438548,-24900.0,0.00021843,2]
[336837893,1725203438558,-251.0,0.00022137,2]
[336837894,1725203438567,-3000.0,0.00022157,2]
[336837895,1725203438577,-215.726861,0.00022179,2]
[336837896,1725203438586,-166.925329,0.00022257,2]
[336837897,1725203438596,-563.73270805,0.00022485,2]
[336837898,1725203438605,-250.0,0.00022609,2]
[336837900,1725203438615,-250.0,0.00022671,2]
[336837901,1725203438624,-250.0,0.00022733,2]
[336837902,1725203438635,-250.0,0.00022795,2]
[336837904,1725203438644,-250.0,0.00022857,2]
[336837905,1725203438654,-250.0,0.00022919,2]
[336837906,1725203438663,-250.0,0.00022981,2]
[336837907,1725203438673,-1500.0,0.0002303,2]
[336837908,1725203438683,-250.0,0.00023043,2]
[336837909,1725203438692,-250.0,0.00023105,2]
[336837910,1725203438702,-250.0,0.00023167,2]
[336837911,1725203438712,-1009.961124,0.000232,2]
[336837912,1725203438721,-250.0,0.00023229,2]
[336837913,1725203438731,-250.0,0.00023291,2]
[336837914,1725203438740,-250.0,0.00023353,2]
[336837915,1725203438750,-469.9366354,0.0002361,2]
[336837916,1725203438760,-2191.7298922,0.00023627,2]
[336837917,1725203438770,-1000.0,0.000237,2]
[336837918,1725203438780,-420.0,0.00023739,2]
[336837919,1725203438789,-1000.0,0.00024,24]
[336837920,1725203438799,-420.0,0.00024026,2]
[336837921,1725203438808,-1000.0,0.000242,2]
[336837922,1725203438818,-204.41387343,0.00024457,2]
[336837923,1725203438827,-408.07983041,0.00024645,2]
[336837924,1725203438836,-491.21950602,0.00024645,2]
[336837925,1725203438845,-500.0,0.00024645,2]
[336837926,1725203438855,-360.0,0.00024645,2]
[336837927,1725203438864,-500.0,0.00024645,2]
[336837928,1725203438874,-500.0,0.00024645,2]
[336837929,1725203438884,-500.0,0.00024645,2]
[336837930,1725203438894,-500.0,0.00024645,2]
[336837931,1725203438903,-500.0,0.00024645,2]
[336837932,1725203438912,-500.0,0.00024645,2]
[336837933,1725203438922,-500.0,0.00024645,2]
[336837934,1725203438931,-500.0,0.00024645,2]
[336837935,1725203438941,-500.0,0.00024645,2]
[336837936,1725203438951,-500.0,0.00024645,2]
[336837937,1725203438961,-426.31246513,0.00024645,2]
[336837938,1725203438970,-500.0,0.00024645,2]
[336837939,1725203438980,-500.0,0.00024645,2]
[336837940,1725203438989,-500.0,0.00024645,2]
[336837941,1725203438999,-500.0,0.00024645,2]
[336837942,1725203439010,-500.0,0.00024645,2]
[336837943,1725203439019,-500.0,0.00024645,2]
[336837944,1725203439029,-500.0,0.00024645,2]
[336837945,1725203439038,-500.0,0.00024645,2]
[336837946,1725203439048,-500.0,0.00024645,2]
[336837947,1725203439057,-500.0,0.00024645,2]
[336837948,1725203439067,-500.0,0.00024645,2]
[336837949,1725203439076,-500.0,0.00024645,2]
[336837950,1725203439086,-500.0,0.00024645,2]
[336837951,1725203439096,-500.0,0.00024645,2]
[336837952,1725203439107,-500.0,0.00024645,2]
[336837953,1725203439118,-500.0,0.00024645,2]
[336837954,1725203439128,-500.0,0.00024645,2]
[336837955,1725203439139,-14564.0342639,0.00024647,3]
[336837956,1725203439151,-415.92,0.00024647,3]
[336837957,1725203439166,-185.90178591,0.00024656,2]
[336837958,1725203439176,-209.69405277,0.00024656,2]
[336837959,1725203439185,-500.0,0.00024656,2]
[336837960,1725203439196,-167.76557343,0.00024656,2]
[336837961,1725203439205,-500.0,0.00024656,2]
[336837962,1725203439215,-563.09965676,0.00024656,2]
[336837963,1725203439224,-500.0,0.00024656,2]
[336837964,1725203439235,-3583.60656708,0.00024657,11]
[336837965,1725203439246,-500.0,0.00024657,2]
[336837966,1725203439257,-500.0,0.00024657,2]
[336837967,1725203439266,-500.0,0.00024657,2]
[336837968,1725203439276,-500.0,0.00024657,2]
[336837969,1725203439286,-500.0,0.00024657,2]
[336837970,1725203439296,-500.0,0.00024657,2]
[336837971,1725203439306,-500.0,0.00024657,2]
[336837972,1725203439316,-500.0,0.00024657,2]
[336837973,1725203439325,-500.0,0.00024657,2]
[336837974,1725203439335,-500.0,0.00024657,2]
[336837975,1725203439345,-500.0,0.00024657,2]
[336837976,1725203439355,-500.0,0.00024657,2]
[336837977,1725203439364,-500.0,0.00024657,2]
[336837978,1725203439384,-500.0,0.00024657,2]
[336837979,1725203439394,-500.0,0.00024657,2]
[336837980,1725203439404,-500.0,0.00024657,2]
[336837981,1725203439414,-500.0,0.00024657,2]
[336837982,1725203439423,-780.95,0.00024657,2]
[336837983,1725203439433,-500.0,0.00024657,2]
[336837984,1725203439443,-500.0,0.00024657,2]
[336837985,1725203439452,-500.0,0.00024657,2]
[336837986,1725203439461,-500.0,0.00024657,2]
[336837987,1725203439470,-500.0,0.00024657,2]
[336837988,1725203439480,-436.35218732,0.00024657,2]
[336837989,1725203439490,-500.0,0.00024657,2]
[336837990,1725203439500,-500.0,0.00024657,2]
[336837991,1725203439510,-500.0,0.00024657,2]
[336837992,1725203439519,-500.0,0.00024657,2]
[336837993,1725203439529,-500.0,0.00024657,2]
[336837994,1725203439539,-500.0,0.00024657,2]
[336837995,1725203439549,-500.0,0.00024657,2]
[336837996,1725203439558,-500.0,0.00024657,2]
[336837997,1725203439568,-500.0,0.00024657,2]
[336837998,1725203439578,-510.21098087,0.00024657,2]
[336837999,1725203439587,-500.0,0.00024657,2]
[336838000,1725203439596,-500.0,0.00024657,2]
[336838001,1725203439605,-500.0,0.00024657,2]
[336838002,1725203439617,-500.0,0.00024657,2]
[336838003,1725203439626,-500.0,0.00024657,2]
[336838004,1725203439636,-500.0,0.00024657,2]
[336838005,1725203439646,-500.0,0.00024657,2]
[336838006,1725203439656,-500.0,0.00024657,2]
[336838007,1725203439666,-500.0,0.00024657,2]
[336838008,1725203439676,-500.0,0.00024657,2]
[336838009,1725203439686,-500.0,0.00024657,2]
[336838010,1725203439696,-165.79316252,0.00024657,2]
[336838011,1725203439706,-500.0,0.00024657,2]
[336838012,1725203439717,-500.0,0.00024657,2]
[336838013,1725203439727,-500.0,0.00024657,2]
[336838014,1725203439738,-507.63146472,0.00024657,2]
[336838015,1725203439748,-320.74701786,0.00024657,2]
[336838016,1725203439757,-500.0,0.00024657,2]
[336838017,1725203439776,-500.0,0.00024657,2]
[336838018,1725203439788,-500.0,0.00024657,2]
[336838019,1725203439797,-500.0,0.00024657,2]
[336838020,1725203439807,-500.0,0.00024657,2]
[336838021,1725203439817,-500.0,0.00024657,2]
[336838022,1725203439827,-500.0,0.00024657,2]
[336838023,1725203439840,-500.0,0.00024657,2]
[336838024,1725203439850,-500.0,0.00024657,2]
[336838025,1725203439862,-507.15802824,0.00024657,2]
[336838026,1725203439874,-500.0,0.00024657,2]
[336838027,1725203439886,-500.0,0.00024657,2]
[336838028,1725203439897,-500.0,0.00024657,2]
[336838029,1725203439909,-500.0,0.00024657,2]
[336838030,1725203439919,-500.0,0.00024657,2]
[336838031,1725203439929,-500.0,0.00024657,2]
[336838032,1725203439940,-500.0,0.00024657,2]
[336838033,1725203439950,-500.0,0.00024657,2]
[336838034,1725203439961,-500.0,0.00024657,2]
[336838035,1725203439973,-500.0,0.00024657,2]
[336838036,1725203439985,-500.0,0.00024657,2]
[336838037,1725203439995,-500.0,0.00024657,2]
[336838039,1725203440006,-500.0,0.00024657,2]
[336838040,1725203440017,-500.0,0.00024657,2]
[336838041,1725203440028,-500.0,0.00024657,2]